[Event "Titled Tuesday Blitz June 27 Late 2023"]
[White "Quirke, Jeffrey"]
[Black "Gasparyan, David"]
[WhiteFideId "2013029"]
[BlackFideId "13311980"]
[WhiteElo "2246"]
[BlackElo "2418"]
[Result "0-1"]
[Round "7"]
[TimeControl "180+2"]
[Date "2023.06.27"]
[WhiteClock "0:00:00"]
[BlackClock "0:00:06"]
[Board "119"]

1. e4 {[%clk 0:03:00]}  c5 {[%clk 0:02:58]} 2. Nc3 {[%clk 0:02:59]}  e6 {[%clk 0:02:58]} 3. Nge2 {[%clk 0:02:54]}  Nf6 {[%clk 0:02:56]} 4. g3 {[%clk 0:02:40]}  d5 {[%clk 0:02:55]} 5. exd5 {[%clk 0:02:39]}  Nxd5 {[%clk 0:02:55]} 6. Bg2 {[%clk 0:02:35]}  Be7 {[%clk 0:02:54]} 7. O-O {[%clk 0:02:34]}  O-O {[%clk 0:02:53]} 8. Nxd5 {[%clk 0:02:32]}  exd5 {[%clk 0:02:54]} 9. d4 {[%clk 0:02:32]}  cxd4 {[%clk 0:02:49]} 10. Nxd4 {[%clk 0:02:30]}  Nc6 {[%clk 0:02:49]} 11. Be3 {[%clk 0:02:17]}  Nxd4 {[%clk 0:02:41]} 12. Bxd4 {[%clk 0:02:15]}  Be6 {[%clk 0:02:42]} 13. Qd2 {[%clk 0:02:07]}  Bf6 {[%clk 0:02:36]} 14. c3 {[%clk 0:02:03]}  Rc8 {[%clk 0:02:31]} 15. Rfe1 {[%clk 0:01:41]}  a6 {[%clk 0:02:16]} 16. Bxf6 {[%clk 0:01:26]}  Qxf6 {[%clk 0:02:15]} 17. Rad1 {[%clk 0:01:22]}  Rfd8 {[%clk 0:02:09]} 18. Qd4 {[%clk 0:01:19]}  Qg6 {[%clk 0:01:53]} 19. b3 {[%clk 0:01:12]}  Qc2 {[%clk 0:01:48]} 20. c4 {[%clk 0:01:03]}  Qxa2 {[%clk 0:01:42]} 21. cxd5 {[%clk 0:00:59]}  Qxb3 {[%clk 0:01:27]} 22. Rb1 {[%clk 0:00:54]}  Qa2 {[%clk 0:01:14]} 23. Rxb7 {[%clk 0:00:44]}  Bxd5 {[%clk 0:01:09]} 24. Bxd5 {[%clk 0:00:43]}  Rxd5 {[%clk 0:01:08]} 25. Qc3 {[%clk 0:00:20]}  Rdd8 {[%clk 0:00:56]} 26. Qe5 {[%clk 0:00:08]}  h6 {[%clk 0:00:53]} 27. Ra7 {[%clk 0:00:07]}  Qa4 {[%clk 0:00:35]} 28. Qe7 {[%clk 0:00:07]}  Qc4 {[%clk 0:00:32]} 29. Qb7 {[%clk 0:00:05]}  Rc6 {[%clk 0:00:17]} 30. Ra8 {[%clk 0:00:03]}  Rxa8 {[%clk 0:00:16]} 31. Qxa8+ {[%clk 0:00:04]}  Kh7 {[%clk 0:00:17]} 32. Re8 {[%clk 0:00:03]}  Re6 {[%clk 0:00:15]} 33. Rh8+ {[%clk 0:00:01]}  Kg6 {[%clk 0:00:15]} 34. Qf3 {[%clk 0:00:01]}  Qc1+ {[%clk 0:00:15]} 35. Kg2 {[%clk 0:00:01]}  Qc2 {[%clk 0:00:14]} 36. Ra8 {[%clk 0:00:01]}  Qf5 {[%clk 0:00:13]} 37. Qxf5+ {[%clk 0:00:01]}  Kxf5 {[%clk 0:00:14]} 38. h4 {[%clk 0:00:01]}  Kf6 {[%clk 0:00:13]} 39. Kg1 {[%clk 0:00:01]}  Rb6 {[%clk 0:00:13]} 40. Kg2 {[%clk 0:00:02]}  g5 {[%clk 0:00:13]} 41. Kh2 {[%clk 0:00:02]}  g4 {[%clk 0:00:13]} 42. Kg2 {[%clk 0:00:02]}  h5 {[%clk 0:00:12]} 43. Rh8 {[%clk 0:00:02]}  Kg6 {[%clk 0:00:12]} 44. Ra8 {[%clk 0:00:02]}  Kg7 {[%clk 0:00:13]} 45. Ra7 {[%clk 0:00:02]}  Rc6 {[%clk 0:00:12]} 46. Ra8 {[%clk 0:00:03]}  Kh7 {[%clk 0:00:12]} 47. Ra7 {[%clk 0:00:03]}  Kg7 {[%clk 0:00:12]} 48. Ra8 {[%clk 0:00:04]}  Kg6 {[%clk 0:00:13]} 49. Ra7 {[%clk 0:00:04]}  f5 {[%clk 0:00:12]} 50. Ra8 {[%clk 0:00:04]}  Kf6 {[%clk 0:00:12]} 51. Ra7 {[%clk 0:00:04]}  Ke5 {[%clk 0:00:12]} 52. Rh7 {[%clk 0:00:04]}  a5 {[%clk 0:00:12]} 53. Rxh5 {[%clk 0:00:04]}  Ra6 {[%clk 0:00:10]} 54. Rh7 {[%clk 0:00:04]}  a4 {[%clk 0:00:11]} 55. Re7+ {[%clk 0:00:04]}  Kf6 {[%clk 0:00:10]} 56. Re2 {[%clk 0:00:04]}  a3 {[%clk 0:00:10]} 57. Ra2 {[%clk 0:00:05]}  Ke5 {[%clk 0:00:11]} 58. f3 {[%clk 0:00:05]}  Kd4 {[%clk 0:00:09]} 59. fxg4 {[%clk 0:00:05]}  fxg4 {[%clk 0:00:10]} 60. h5 {[%clk 0:00:05]}  Kc3 {[%clk 0:00:08]} 61. h6 {[%clk 0:00:03]}  Kb3 {[%clk 0:00:08]} 62. h7 {[%clk 0:00:02]}  Rh6 {[%clk 0:00:07]} 63. Re2 {[%clk 0:00:00]}  a2 {[%clk 0:00:06]} 0-1


[Site "https://www.chess.com"]

[Event "Titled Tuesday Blitz June 27 Late 2023"]
[White "Vega Gutierrez, Sabrina"]
[Black "Broca Jimenez, Fernando"]
[WhiteFideId "2219026"]
[BlackFideId "5104742"]
[WhiteElo "2403"]
[BlackElo "2237"]
[Result "1-0"]
[Round "7"]
[TimeControl "180+2"]
[Date "2023.06.27"]
[WhiteClock "0:00:43"]
[BlackClock "0:00:00"]
[Board "120"]

1. e4 {[%clk 0:03:00]}  e5 {[%clk 0:02:58]} 2. Nf3 {[%clk 0:03:01]}  Nc6 {[%clk 0:02:58]} 3. Nc3 {[%clk 0:03:01]}  Nf6 {[%clk 0:02:56]} 4. g3 {[%clk 0:03:01]}  Bc5 {[%clk 0:02:43]} 5. Bg2 {[%clk 0:03:01]}  d6 {[%clk 0:02:42]} 6. d3 {[%clk 0:02:57]}  h6 {[%clk 0:02:34]} 7. h3 {[%clk 0:02:56]}  Be6 {[%clk 0:02:31]} 8. Na4 {[%clk 0:02:54]}  Bb6 {[%clk 0:02:31]} 9. a3 {[%clk 0:02:52]}  O-O {[%clk 0:02:16]} 10. O-O {[%clk 0:02:51]}  Qd7 {[%clk 0:02:08]} 11. Nxb6 {[%clk 0:02:49]}  axb6 {[%clk 0:02:08]} 12. Kh2 {[%clk 0:02:49]}  d5 {[%clk 0:02:07]} 13. exd5 {[%clk 0:02:18]}  Bxd5 {[%clk 0:02:01]} 14. Re1 {[%clk 0:02:14]}  Rfe8 {[%clk 0:01:59]} 15. Bd2 {[%clk 0:01:54]}  Rad8 {[%clk 0:01:41]} 16. Bc3 {[%clk 0:01:54]}  Qd6 {[%clk 0:01:20]} 17. b4 {[%clk 0:01:42]}  e4 {[%clk 0:00:33]} 18. Nh4 {[%clk 0:01:42]}  exd3 {[%clk 0:00:28]} 19. Rxe8+ {[%clk 0:01:40]}  Nxe8 {[%clk 0:00:20]} 20. Qxd3 {[%clk 0:01:23]}  Bxg2 {[%clk 0:00:18]} 21. Qxd6 {[%clk 0:01:23]}  Nxd6 {[%clk 0:00:17]} 22. Kxg2 {[%clk 0:01:24]}  Re8 {[%clk 0:00:17]} 23. Kf1 {[%clk 0:01:22]}  f6 {[%clk 0:00:13]} 24. Rd1 {[%clk 0:00:52]}  Kf7 {[%clk 0:00:11]} 25. Nf3 {[%clk 0:00:51]}  Ne4 {[%clk 0:00:09]} 26. Bb2 {[%clk 0:00:49]}  Rd8 {[%clk 0:00:08]} 27. Rxd8 {[%clk 0:00:47]}  Nxd8 {[%clk 0:00:07]} 28. Nd4 {[%clk 0:00:47]}  Nc6 {[%clk 0:00:07]} 29. Nb5 {[%clk 0:00:43]}  Nd2+ {[%clk 0:00:02]} 30. Ke2 {[%clk 0:00:43]}  Nc4 {[%clk 0:00:00]} 31. Bc1 {[%clk 0:00:43]} 1-0


[Site "https://www.chess.com"]

[Event "Titled Tuesday Blitz June 27 Late 2023"]
[White "Szyszylo, Rafal"]
[Black "Oliveira, Tiago Batista"]
[WhiteFideId "1109626"]
[BlackFideId "2108291"]
[WhiteElo "2400"]
[BlackElo "2176"]
[Result "1-0"]
[Round "7"]
[TimeControl "180+2"]
[Date "2023.06.27"]
[WhiteClock "0:01:56"]
[BlackClock "0:01:35"]
[Board "121"]

1. e4 {[%clk 0:03:00]}  e5 {[%clk 0:02:52]} 2. Bc4 {[%clk 0:02:59]}  g6 {[%clk 0:02:43]} 3. Nc3 {[%clk 0:02:58]}  c6 {[%clk 0:02:42]} 4. d4 {[%clk 0:02:49]}  Bg7 {[%clk 0:02:41]} 5. dxe5 {[%clk 0:02:48]}  Bxe5 {[%clk 0:02:41]} 6. Nf3 {[%clk 0:02:48]}  Bg7 {[%clk 0:02:40]} 7. e5 {[%clk 0:02:43]}  Ne7 {[%clk 0:02:39]} 8. O-O {[%clk 0:02:43]}  O-O {[%clk 0:02:39]} 9. Bg5 {[%clk 0:02:41]}  Re8 {[%clk 0:02:35]} 10. Qd6 {[%clk 0:02:31]}  Nf5 {[%clk 0:02:29]} 11. Bxd8 {[%clk 0:02:30]}  Nxd6 {[%clk 0:02:29]} 12. exd6 {[%clk 0:02:31]}  Rxd8 {[%clk 0:02:28]} 13. Ng5 {[%clk 0:02:27]}  Rf8 {[%clk 0:02:24]} 14. Rfe1 {[%clk 0:02:27]}  Bxc3 {[%clk 0:02:21]} 15. bxc3 {[%clk 0:02:26]}  b5 {[%clk 0:02:20]} 16. Bb3 {[%clk 0:02:25]}  Bb7 {[%clk 0:02:19]} 17. Re7 {[%clk 0:02:21]}  c5 {[%clk 0:02:13]} 18. Bxf7+ {[%clk 0:02:03]}  Kg7 {[%clk 0:01:55]} 19. Bd5+ {[%clk 0:01:58]}  Kh6 {[%clk 0:01:35]} 20. Bxb7 {[%clk 0:01:56]} 1-0


[Site "https://www.chess.com"]

[Event "Titled Tuesday Blitz June 27 Late 2023"]
[White "Lowinger, Daniel"]
[Black "zano2023"]
[WhiteFideId "2005557"]
[WhiteElo "2388"]
[BlackElo "2168"]
[Result "1-0"]
[Round "7"]
[TimeControl "180+2"]
[Date "2023.06.27"]
[WhiteClock "0:00:13"]
[BlackClock "0:00:57"]
[Board "122"]

1. e4 {[%clk 0:03:00]}  e5 {[%clk 0:02:59]} 2. Nf3 {[%clk 0:03:00]}  d6 {[%clk 0:02:57]} 3. d4 {[%clk 0:03:00]}  f5 {[%clk 0:02:57]} 4. dxe5 {[%clk 0:02:56]}  fxe4 {[%clk 0:02:57]} 5. Ng5 {[%clk 0:02:57]}  d5 {[%clk 0:02:57]} 6. c4 {[%clk 0:02:49]}  Bb4+ {[%clk 0:02:53]} 7. Nc3 {[%clk 0:02:37]}  d4 {[%clk 0:02:53]} 8. a3 {[%clk 0:02:36]}  Bxc3+ {[%clk 0:02:52]} 9. bxc3 {[%clk 0:02:35]}  e3 {[%clk 0:02:52]} 10. Ne4 {[%clk 0:02:15]}  exf2+ {[%clk 0:02:48]} 11. Nxf2 {[%clk 0:02:13]}  c5 {[%clk 0:02:43]} 12. g3 {[%clk 0:02:02]}  Qe7 {[%clk 0:02:41]} 13. Qe2 {[%clk 0:01:51]}  Nc6 {[%clk 0:02:38]} 14. Bf4 {[%clk 0:01:47]}  Bf5 {[%clk 0:02:31]} 15. Bg2 {[%clk 0:01:42]}  O-O-O {[%clk 0:02:08]} 16. Bxc6 {[%clk 0:01:36]}  bxc6 {[%clk 0:02:06]} 17. O-O {[%clk 0:01:34]}  g5 {[%clk 0:02:02]} 18. Bd2 {[%clk 0:01:31]}  Qe6 {[%clk 0:01:54]} 19. Qf3 {[%clk 0:01:25]}  g4 {[%clk 0:01:42]} 20. Qg2 {[%clk 0:01:17]}  Ne7 {[%clk 0:01:41]} 21. Bg5 {[%clk 0:01:06]}  Rd7 {[%clk 0:01:41]} 22. Bf6 {[%clk 0:01:02]}  Rg8 {[%clk 0:01:35]} 23. Ne4 {[%clk 0:01:02]}  Bxe4 {[%clk 0:01:32]} 24. Qxe4 {[%clk 0:01:01]}  h5 {[%clk 0:01:32]} 25. Bxe7 {[%clk 0:00:43]}  Rxe7 {[%clk 0:01:30]} 26. Rae1 {[%clk 0:00:29]}  h4 {[%clk 0:01:29]} 27. Rf6 {[%clk 0:00:27]}  Qxf6 {[%clk 0:01:24]} 28. exf6 {[%clk 0:00:25]}  Rxe4 {[%clk 0:01:24]} 29. Rxe4 {[%clk 0:00:25]}  Rf8 {[%clk 0:01:18]} 30. cxd4 {[%clk 0:00:24]}  cxd4 {[%clk 0:01:17]} 31. Rxd4 {[%clk 0:00:22]}  hxg3 {[%clk 0:01:17]} 32. hxg3 {[%clk 0:00:20]}  Rxf6 {[%clk 0:01:17]} 33. Rxg4 {[%clk 0:00:20]}  Kc7 {[%clk 0:01:13]} 34. Rf4 {[%clk 0:00:17]}  Re6 {[%clk 0:01:08]} 35. Kf2 {[%clk 0:00:16]}  c5 {[%clk 0:01:07]} 36. g4 {[%clk 0:00:14]}  Kd6 {[%clk 0:01:06]} 37. Kf3 {[%clk 0:00:12]}  Ke5 {[%clk 0:01:04]} 38. Re4+ {[%clk 0:00:12]}  Kd6 {[%clk 0:01:02]} 39. Rxe6+ {[%clk 0:00:13]}  Kxe6 {[%clk 0:01:01]} 40. Ke4 {[%clk 0:00:13]}  a6 {[%clk 0:01:00]} 41. a4 {[%clk 0:00:13]}  a5 {[%clk 0:00:57]} 42. g5 {[%clk 0:00:13]} 1-0


[Site "https://www.chess.com"]

[Event "Titled Tuesday Blitz June 27 Late 2023"]
[White "Lopez Del Alamo, Antonio"]
[Black "Sanchez, Robert"]
[WhiteFideId "2227339"]
[BlackFideId "2034360"]
[WhiteElo "2366"]
[BlackElo "2118"]
[Result "0-1"]
[Round "7"]
[TimeControl "180+2"]
[Date "2023.06.27"]
[WhiteClock "0:00:08"]
[BlackClock "0:01:27"]
[Board "124"]

1. e4 {[%clk 0:01:44]}  d5 {[%clk 0:02:56]} 2. exd5 {[%clk 0:01:43]}  Qxd5 {[%clk 0:02:57]} 3. Nc3 {[%clk 0:01:43]}  Qe6+ {[%clk 0:02:57]} 4. Be2 {[%clk 0:01:42]}  Qg6 {[%clk 0:02:57]} 5. Bf3 {[%clk 0:01:41]}  Nc6 {[%clk 0:02:57]} 6. Nge2 {[%clk 0:01:40]}  e5 {[%clk 0:02:57]} 7. Ng3 {[%clk 0:01:36]}  Bd7 {[%clk 0:02:57]} 8. O-O {[%clk 0:01:27]}  O-O-O {[%clk 0:02:57]} 9. d3 {[%clk 0:01:25]}  f5 {[%clk 0:02:58]} 10. a3 {[%clk 0:01:18]}  Bd6 {[%clk 0:02:58]} 11. b4 {[%clk 0:01:17]}  Nd4 {[%clk 0:02:57]} 12. Rb1 {[%clk 0:00:55]}  Nxf3+ {[%clk 0:02:56]} 13. Qxf3 {[%clk 0:00:54]}  Ne7 {[%clk 0:02:56]} 14. a4 {[%clk 0:00:46]}  Bc6 {[%clk 0:02:53]} 15. Qe2 {[%clk 0:00:45]}  h5 {[%clk 0:02:46]} 16. b5 {[%clk 0:00:44]}  Bd7 {[%clk 0:02:46]} 17. f4 {[%clk 0:00:35]}  h4 {[%clk 0:02:30]} 18. Nh1 {[%clk 0:00:35]}  exf4 {[%clk 0:02:19]} 19. Bxf4 {[%clk 0:00:36]}  Rde8 {[%clk 0:02:17]} 20. Bxd6 {[%clk 0:00:31]}  Qxd6 {[%clk 0:02:14]} 21. Qd2 {[%clk 0:00:29]}  h3 {[%clk 0:02:08]} 22. g3 {[%clk 0:00:29]}  Kb8 {[%clk 0:02:07]} 23. d4 {[%clk 0:00:19]}  g5 {[%clk 0:02:06]} 24. Nf2 {[%clk 0:00:19]}  Nd5 {[%clk 0:02:00]} 25. Nxd5 {[%clk 0:00:15]}  Qxd5 {[%clk 0:02:00]} 26. Nd1 {[%clk 0:00:14]}  f4 {[%clk 0:01:53]} 27. c4 {[%clk 0:00:12]}  Qd6 {[%clk 0:01:47]} 28. Nc3 {[%clk 0:00:11]}  fxg3 {[%clk 0:01:46]} 29. hxg3 {[%clk 0:00:12]}  Qxg3+ {[%clk 0:01:45]} 30. Kh1 {[%clk 0:00:12]}  Bg4 {[%clk 0:01:41]} 31. d5 {[%clk 0:00:09]}  Bf3+ {[%clk 0:01:40]} 32. Rxf3 {[%clk 0:00:10]}  Qxf3+ {[%clk 0:01:40]} 33. Kh2 {[%clk 0:00:11]}  Re3 {[%clk 0:01:36]} 34. d6 {[%clk 0:00:08]}  Qg3+ {[%clk 0:01:33]} 35. Kh1 {[%clk 0:00:08]}  Rxc3 {[%clk 0:01:30]} 36. dxc7+ {[%clk 0:00:08]}  Kxc7 {[%clk 0:01:28]} 37. Rd1 {[%clk 0:00:09]}  Qg2+ {[%clk 0:01:26]} 38. Qxg2 {[%clk 0:00:10]}  hxg2+ {[%clk 0:01:27]} 39. Kxg2 {[%clk 0:00:08]}  Rxc4 {[%clk 0:01:27]} 0-1


[Site "https://www.chess.com"]

[Event "Titled Tuesday Blitz June 27 Late 2023"]
[White "Torres Dominguez, David"]
[Black "Carrasco Miranda, Andres"]
[WhiteFideId "2220857"]
[BlackFideId "3405990"]
[WhiteElo "2116"]
[BlackElo "2394"]
[Result "0-1"]
[Round "7"]
[TimeControl "180+2"]
[Date "2023.06.27"]
[WhiteClock "0:00:00"]
[BlackClock "0:00:58"]
[Board "126"]

1. e4 {[%clk 0:02:59]}  e5 {[%clk 0:02:58]} 2. Bc4 {[%clk 0:02:58]}  Bc5 {[%clk 0:02:55]} 3. Nc3 {[%clk 0:02:58]}  Nf6 {[%clk 0:02:51]} 4. d3 {[%clk 0:02:57]}  h6 {[%clk 0:02:48]} 5. f4 {[%clk 0:02:57]}  d6 {[%clk 0:02:47]} 6. Nf3 {[%clk 0:02:57]}  c6 {[%clk 0:02:47]} 7. Qe2 {[%clk 0:02:31]}  O-O {[%clk 0:02:42]} 8. fxe5 {[%clk 0:02:21]}  dxe5 {[%clk 0:02:40]} 9. Be3 {[%clk 0:02:21]}  Bd4 {[%clk 0:02:37]} 10. O-O {[%clk 0:02:12]}  Ng4 {[%clk 0:02:32]} 11. Nd1 {[%clk 0:02:05]}  Nxe3 {[%clk 0:02:21]} 12. Nxe3 {[%clk 0:02:06]}  b5 {[%clk 0:02:16]} 13. Bb3 {[%clk 0:02:05]}  a5 {[%clk 0:02:17]} 14. a4 {[%clk 0:02:04]}  Nd7 {[%clk 0:02:14]} 15. c3 {[%clk 0:01:59]}  Bb6 {[%clk 0:02:10]} 16. Kh1 {[%clk 0:01:59]}  Nc5 {[%clk 0:02:06]} 17. Bc2 {[%clk 0:01:58]}  Qc7 {[%clk 0:02:04]} 18. Nh4 {[%clk 0:01:56]}  Ne6 {[%clk 0:01:43]} 19. Nhf5 {[%clk 0:01:52]}  Nf4 {[%clk 0:01:38]} 20. Qg4 {[%clk 0:01:48]}  Ng6 {[%clk 0:01:35]} 21. Bb3 {[%clk 0:01:47]}  Bxe3 {[%clk 0:01:33]} 22. Qxg6 {[%clk 0:01:43]}  Bxf5 {[%clk 0:01:26]} 23. Rxf5 {[%clk 0:01:41]}  bxa4 {[%clk 0:01:18]} 24. Bc4 {[%clk 0:00:00]}  a3 {[%clk 0:00:58]} 0-1


[Site "https://www.chess.com"]

[Event "Titled Tuesday Blitz June 27 Late 2023"]
[White "Sokolov, Andrei"]
[Black "Gardezi, Arsal"]
[WhiteFideId "11600306"]
[BlackFideId "30949521"]
[WhiteElo "2350"]
[BlackElo "2185"]
[Result "0-1"]
[Round "7"]
[TimeControl "180+2"]
[Date "2023.06.27"]
[WhiteClock "0:00:00"]
[BlackClock "0:00:17"]
[Board "127"]

1. d4 {[%clk 0:03:00]}  Nf6 {[%clk 0:02:59]} 2. c4 {[%clk 0:02:59]}  e6 {[%clk 0:02:59]} 3. g3 {[%clk 0:02:58]}  d5 {[%clk 0:02:57]} 4. Nf3 {[%clk 0:02:57]}  Be7 {[%clk 0:02:56]} 5. Bg2 {[%clk 0:02:57]}  O-O {[%clk 0:02:55]} 6. O-O {[%clk 0:02:56]}  dxc4 {[%clk 0:02:52]} 7. Qc2 {[%clk 0:02:56]}  a6 {[%clk 0:02:51]} 8. a4 {[%clk 0:02:56]}  Nbd7 {[%clk 0:02:49]} 9. Qxc4 {[%clk 0:02:52]}  b5 {[%clk 0:02:49]} 10. Qc2 {[%clk 0:02:45]}  Bb7 {[%clk 0:02:47]} 11. Bf4 {[%clk 0:02:34]}  c5 {[%clk 0:02:45]} 12. axb5 {[%clk 0:01:55]}  axb5 {[%clk 0:02:43]} 13. Nc3 {[%clk 0:01:54]}  cxd4 {[%clk 0:02:42]} 14. Nxb5 {[%clk 0:01:39]}  Rxa1 {[%clk 0:02:24]} 15. Rxa1 {[%clk 0:01:37]}  Bxf3 {[%clk 0:02:24]} 16. Bxf3 {[%clk 0:01:06]}  e5 {[%clk 0:02:21]} 17. Ra8 {[%clk 0:01:00]}  Qb6 {[%clk 0:01:19]} 18. Nxd4 {[%clk 0:00:22]}  Rxa8 {[%clk 0:00:47]} 19. Bxa8 {[%clk 0:00:23]}  exf4 {[%clk 0:00:42]} 20. Qc8+ {[%clk 0:00:18]}  Qd8 {[%clk 0:00:36]} 21. Qb7 {[%clk 0:00:10]}  fxg3 {[%clk 0:00:20]} 22. Nc6 {[%clk 0:00:08]}  gxh2+ {[%clk 0:00:20]} 23. Kxh2 {[%clk 0:00:08]}  Bd6+ {[%clk 0:00:20]} 24. Kg1 {[%clk 0:00:08]}  Qb8 {[%clk 0:00:20]} 25. Qa6 {[%clk 0:00:03]}  Qc7 {[%clk 0:00:20]} 26. Bb7 {[%clk 0:00:02]}  g6 {[%clk 0:00:19]} 27. Qa8+ {[%clk 0:00:02]}  Kg7 {[%clk 0:00:20]} 28. Qa6 {[%clk 0:00:02]}  Ne5 {[%clk 0:00:20]} 29. Na7 {[%clk 0:00:02]}  Qc1+ {[%clk 0:00:19]} 30. Kg2 {[%clk 0:00:01]}  Qg5+ {[%clk 0:00:20]} 31. Kf1 {[%clk 0:00:00]}  Nfg4 {[%clk 0:00:17]} 0-1


[Site "https://www.chess.com"]

[Event "Titled Tuesday Blitz June 27 Late 2023"]
[White "Gerbelli Neto, Eduardo"]
[Black "Cooper, Aaron"]
[WhiteFideId "2103281"]
[BlackFideId "2634945"]
[WhiteElo "2302"]
[BlackElo "2180"]
[Result "0-1"]
[Round "7"]
[TimeControl "180+2"]
[Date "2023.06.27"]
[WhiteClock "0:00:04"]
[BlackClock "0:00:09"]
[Board "128"]

1. e4 {[%clk 0:03:00]}  d5 {[%clk 0:02:59]} 2. exd5 {[%clk 0:03:00]}  Qxd5 {[%clk 0:03:00]} 3. Nc3 {[%clk 0:03:00]}  Qd6 {[%clk 0:03:00]} 4. Bc4 {[%clk 0:03:00]}  Nf6 {[%clk 0:03:00]} 5. d3 {[%clk 0:02:59]}  a6 {[%clk 0:02:59]} 6. Qe2 {[%clk 0:02:59]}  b5 {[%clk 0:02:56]} 7. Bb3 {[%clk 0:02:58]}  Bb7 {[%clk 0:02:56]} 8. Nf3 {[%clk 0:02:59]}  Nc6 {[%clk 0:02:51]} 9. O-O {[%clk 0:02:41]}  e6 {[%clk 0:02:49]} 10. Bg5 {[%clk 0:02:31]}  Nd4 {[%clk 0:02:38]} 11. Nxd4 {[%clk 0:02:25]}  Qxd4 {[%clk 0:02:38]} 12. Rfe1 {[%clk 0:01:51]}  Be7 {[%clk 0:02:27]} 13. Ne4 {[%clk 0:01:21]}  Bxe4 {[%clk 0:02:19]} 14. dxe4 {[%clk 0:01:17]}  h6 {[%clk 0:02:04]} 15. Bxf6 {[%clk 0:01:12]}  Bxf6 {[%clk 0:01:54]} 16. e5 {[%clk 0:01:10]}  Be7 {[%clk 0:01:50]} 17. c3 {[%clk 0:01:01]}  Qf4 {[%clk 0:01:44]} 18. g3 {[%clk 0:00:58]}  Qf5 {[%clk 0:01:28]} 19. Bc2 {[%clk 0:00:56]}  Qh3 {[%clk 0:01:28]} 20. Qe4 {[%clk 0:00:44]}  Rd8 {[%clk 0:01:20]} 21. Qc6+ {[%clk 0:00:40]}  Kf8 {[%clk 0:01:20]} 22. Qxc7 {[%clk 0:00:39]}  h5 {[%clk 0:01:19]} 23. Rad1 {[%clk 0:00:33]}  Re8 {[%clk 0:00:59]} 24. Rd7 {[%clk 0:00:31]}  h4 {[%clk 0:00:55]} 25. Re3 {[%clk 0:00:17]}  hxg3 {[%clk 0:00:54]} 26. Rxg3 {[%clk 0:00:15]}  Qxh2+ {[%clk 0:00:52]} 27. Kf1 {[%clk 0:00:15]}  Qh1+ {[%clk 0:00:47]} 28. Ke2 {[%clk 0:00:15]}  Rh5 {[%clk 0:00:23]} 29. Rf3 {[%clk 0:00:14]}  Qc1 {[%clk 0:00:14]} 30. Bg6 {[%clk 0:00:09]}  Qxb2+ {[%clk 0:00:10]} 31. Kd3 {[%clk 0:00:08]}  Qb1+ {[%clk 0:00:09]} 32. Kd4 {[%clk 0:00:08]}  Qxg6 {[%clk 0:00:09]} 33. Rxe7 {[%clk 0:00:07]}  Rxe7 {[%clk 0:00:09]} 34. Qd8+ {[%clk 0:00:07]}  Re8 {[%clk 0:00:09]} 35. Qd6+ {[%clk 0:00:07]}  Kg8 {[%clk 0:00:09]} 36. Qd7 {[%clk 0:00:08]}  Qg4+ {[%clk 0:00:09]} 37. Ke3 {[%clk 0:00:04]}  Rxe5+ {[%clk 0:00:09]} 0-1


[Site "https://www.chess.com"]

[Event "Titled Tuesday Blitz June 27 Late 2023"]
[White "Dmitriev, Sergey"]
[Black "Kohler, Aran"]
[WhiteFideId "14101785"]
[BlackFideId "1002856"]
[WhiteElo "1954"]
[BlackElo "2255"]
[Result "0-1"]
[Round "7"]
[TimeControl "180+2"]
[Date "2023.06.27"]
[WhiteClock "0:00:39"]
[BlackClock "0:01:06"]
[Board "130"]

1. d4 {[%clk 0:02:46]}  d5 {[%clk 0:02:58]} 2. Bf4 {[%clk 0:02:46]}  Nf6 {[%clk 0:02:57]} 3. Nf3 {[%clk 0:02:47]}  c5 {[%clk 0:02:56]} 4. e3 {[%clk 0:02:47]}  Nc6 {[%clk 0:02:56]} 5. c3 {[%clk 0:02:47]}  Qb6 {[%clk 0:02:54]} 6. b3 {[%clk 0:02:46]}  Bg4 {[%clk 0:02:51]} 7. Nbd2 {[%clk 0:02:44]}  e6 {[%clk 0:02:51]} 8. Be2 {[%clk 0:02:42]}  cxd4 {[%clk 0:02:51]} 9. cxd4 {[%clk 0:02:40]}  Be7 {[%clk 0:02:44]} 10. O-O {[%clk 0:02:37]}  O-O {[%clk 0:02:43]} 11. Ne5 {[%clk 0:02:35]}  Bxe2 {[%clk 0:02:42]} 12. Qxe2 {[%clk 0:02:35]}  Nxe5 {[%clk 0:02:42]} 13. dxe5 {[%clk 0:02:35]}  Nd7 {[%clk 0:02:41]} 14. g4 {[%clk 0:02:31]}  Rac8 {[%clk 0:02:36]} 15. Rac1 {[%clk 0:02:29]}  Ba3 {[%clk 0:02:36]} 16. Rxc8 {[%clk 0:02:27]}  Rxc8 {[%clk 0:02:35]} 17. Qd3 {[%clk 0:02:27]}  Qa6 {[%clk 0:02:24]} 18. Qd4 {[%clk 0:02:21]}  h6 {[%clk 0:02:15]} 19. h4 {[%clk 0:02:20]}  Rc2 {[%clk 0:02:08]} 20. Nb1 {[%clk 0:02:10]}  Rxa2 {[%clk 0:02:05]} 21. Nxa3 {[%clk 0:02:08]}  Qxa3 {[%clk 0:02:02]} 22. g5 {[%clk 0:01:59]}  hxg5 {[%clk 0:02:01]} 23. hxg5 {[%clk 0:01:58]}  Qb2 {[%clk 0:01:53]} 24. Qb4 {[%clk 0:01:51]}  Nf8 {[%clk 0:01:54]} 25. Qxb7 {[%clk 0:01:46]}  a5 {[%clk 0:01:54]} 26. Bg3 {[%clk 0:01:32]}  Ra3 {[%clk 0:01:49]} 27. Qc8 {[%clk 0:01:27]}  Qxb3 {[%clk 0:01:37]} 28. Kg2 {[%clk 0:01:23]}  Qc4 {[%clk 0:01:35]} 29. Qe8 {[%clk 0:01:17]}  Qe4+ {[%clk 0:01:33]} 30. Kg1 {[%clk 0:01:13]}  Rb3 {[%clk 0:01:28]} 31. Rc1 {[%clk 0:01:10]}  Rb1 {[%clk 0:01:28]} 32. Rxb1 {[%clk 0:01:08]}  Qxb1+ {[%clk 0:01:26]} 33. Kg2 {[%clk 0:01:08]}  Qe4+ {[%clk 0:01:25]} 34. Kh2 {[%clk 0:01:03]}  a4 {[%clk 0:01:25]} 35. Qa8 {[%clk 0:01:01]}  Qb4 {[%clk 0:01:25]} 36. Bf4 {[%clk 0:00:59]}  a3 {[%clk 0:01:22]} 37. Qa7 {[%clk 0:00:56]}  Qb2 {[%clk 0:01:19]} 38. g6 {[%clk 0:00:52]}  Nxg6 {[%clk 0:01:15]} 39. Bg5 {[%clk 0:00:51]}  Qxe5+ {[%clk 0:01:12]} 40. f4 {[%clk 0:00:50]}  Qb2+ {[%clk 0:01:12]} 41. Kg3 {[%clk 0:00:49]}  a2 {[%clk 0:01:10]} 42. Qa8+ {[%clk 0:00:48]}  Kh7 {[%clk 0:01:10]} 43. Qe8 {[%clk 0:00:41]}  a1=Q {[%clk 0:01:09]} 44. Qxf7 {[%clk 0:00:38]}  Qg1+ {[%clk 0:01:07]} 45. Kf3 {[%clk 0:00:39]}  Qbg2# {[%clk 0:01:06]} 0-1


[Site "https://www.chess.com"]